{"text_format":"1","workbook":"xlsx","n_sheets":1,"sheets":["Soupis prací se vzorci"],"not_rendered":{"charts":0,"images":0,"macros":0,"external_links":0,"defined_names":1,"comments":0,"pivot_tables":0},"unopened":[],"bounds":{"document_bytes":16777216,"sheet_cells":100000,"rows_first":2000,"rows_last":500,"rows_between":2000,"halvings":0,"cell_chars":16384,"cell_head_chars":4096},"cells_cut":0,"cells_raw":0,"read":"whole","date_system":"1900"}

{"sheet":"Soupis prací se vzorci","index":0,"n_rows":696,"n_cols":8,"rows_kept":696,"cut":false,"hidden":false,"merged":[[12,3,12,4]]}
[]
[]
["1.","Sestavení nákladů stavby:  \"Rekonstrukce VO oblast Lužická - Lumírova\""]
[]
[]
[]
[]
[]
[]
[null,null,"Kč",null,null,"Kč"]
[null,null,"bez DPH",null,null,"vč. DPH"]
[]
[null,"Celkové stavební náklady",null,{"$f":"F41","v":0},null,{"$f":"F43","v":0}]
[]
[]
[]
[]
[]
[null,"R E K A P I T U L A C E"]
[]
[]
["I.","demontáže",null,null,null,{"$f":"ROUND(F138,0)","v":0}]
[]
["II.A","montáže",null,null,{"$f":"ROUND(F227,0)","v":0}]
["II.B","montáže - materiál nosný",null,null,{"$f":"ROUND(F421,0)","v":0}]
["II.","montáže celkem",null,null,null,{"$f":"ROUND(SUM(E24:E25),0)","v":0}]
[]
["III.A","uzemnění - montáže",null,null,{"$f":"ROUND(F435,0)","v":0}]
["III.B","uzemnění - materiál nosný",null,null,{"$f":"ROUND(F446,0)","v":0}]
["III.","uzemnění celkem",null,null,null,{"$f":"ROUND(SUM(E28:E29),0)","v":0}]
[]
["IV.","zemní práce",null,null,null,{"$f":"ROUND(F638,0)","v":0},null,"UPOZORNĚNÍ:"]
[null,null,null,null,null,null,null,"Proti neúmyslnému přepsání položek je list uzamčen a odemčeny jsou pouze buňky, které je nezbytné vyplnit. "]
["V.","dodávka strojů a zařízení (rozváděče)",null,null,null,{"$f":"ROUND(F654,0)","v":0},null,"V případě potřeby je možno list odemknout (pravým tlačítkem myši na záložku listu \"Soupis prací se vzorci\" a vybrat položku \"odemknout list\") - není vyžadováno žádné heslo."]
[]
["VI.","hodinová zúčtovací sazba",null,null,null,{"$f":"ROUND(F666,0)","v":0}]
[]
["VII.","vedlejší a ostatní náklady",null,null,null,{"$f":"ROUND(F696,0)","v":0}]
[]
[]
[null,"CELKOVÉ STAV. NÁKLADY - BEZ DPH",null,null,null,{"$f":"ROUND(SUM(F22:F39),0)","v":0}]
[null,{"$f":"\"DPH \"&$G$42&\"%\"","v":"DPH 21%"},null,null,null,{"$f":"ROUND(F41*($G$42/100),0)","v":0},21,"Do buňky G42 doplnit aktuální sazbu DPH v %"]
[null,"CELKOVÉ STAV. NÁKLADY - vč. DPH",null,null,null,{"$f":"F41+F42","v":0}]
[]
[]
[]
[]
[]
[]
[]
[]
[]
[]
[null,"Upozornění:"]
[null,"Výměry jednotlivých položek soupisu prací vycházejí z výkazu výměr stavby \"Rekonstrukce VO oblast Lužická - Lumírova\","]
[null,"který je součástí CD s projektovou dokumentací v elektronické formě. Ve výkazu výměr jsou rovněž uvedeny"]
[null,"nezbytné doplňující informace k jednotlivým položkám a jejich obsahu."]
[null,"Při sestavení soupisu prací stavby \"Rekonstrukce VO oblast Lužická - Lumírova\" není použita cenová soustava."]
[null,"Všechny dodávky materiálu jsou včetně dopravy materiálu na místo stavby."]
[null,"Ve všech popsaných pracích je zahrnuto i použití nezbytného nářadí, nástrojů a jiných pomůcek nutných pro provedení práce."]
[]
[]
["2.","Soupis prací stavby: \"Rekonstrukce VO oblast Lužická - Lumírova\""]
[]
[]
["Soupis prací pro investora s uvedením cen obsažen pouze v soupravě č. 1"]
[]
["I.","DEMONTÁŽE","m.j.","počet","      cena za m.j.","cena celkem"]
[]
[1,"kompletní demontáž sadového paticového ocelového stožáru VO (výška do 6 m"]
[null,"včetně) včetně svítidla, patice, svodového kabelu, elektrovýzbroje s jištěním,"]
[null,"koncovek kabelů - včetně montážní plošiny, potřebného nářadí, likvidace výbojky,"]
[null,"naložení, odvozu, likvidace a uložení odpadu","ks",5,null,{"$f":"D73*E73","v":0}]
[{"$f":"A70+1","v":2},"kompletní demontáž sadového bezpaticového ocelového stožáru VO (výška"]
[null,"do 6 m včetně) včetně svítidla, svodového kabelu, elektrovýzbroje s jištěním,"]
[null,"koncovek kabelů - včetně montážní plošiny, potřebného nářadí, likvidace výbojky,"]
[null,"naložení, odvozu, likvidace a uložení odpadu","ks",44,null,{"$f":"D77*E77","v":0}]
[{"$f":"A74+1","v":3},"kompletní demontáž silničního paticového ocelového stožáru VO (výška 10 m)"]
[null,"vč. jednoramenného výložníku, svítidla, patice, svodového kabelu, elektrovýzbroje"]
[null,"s jištěním, koncovek kabelů - včetně montážní plošiny, potřebného nářadí, likvidace"]
[null,"výbojky, naložení, odvozu, likvidace a uložení odpadu","ks",3,null,{"$f":"D81*E81","v":0}]
[{"$f":"A78+1","v":4},"kompletní demontáž silničního bezpaticového ocelového stožáru VO (výška 10 m)"]
[null,"včetně jednoramenného výložníku, svítidla, svodového kabelu, elektrovýzbroje"]
[null,"s jištěním, koncovek kabelů - včetně montážní plošiny, potřebného nářadí, likvidace"]
[null,"výbojky, naložení, odvozu, likvidace a uložení odpadu","ks",2,null,{"$f":"D85*E85","v":0}]
[{"$f":"A82+1","v":5},"kompletní demontáž silničního paticového ocelového stožáru VO (výška 10 m)"]
[null,"vč. dvouramenného výložníku, patice, 2 svítidel, 2 svod. kabelů, elektrovýzbroje"]
[null,"s jištěním, koncovek kabelů - včetně montážní plošiny, potřebného nářadí, likvidace"]
[null,"výbojek, naložení, odvozu, likvidace a uložení odpadu","ks",8,null,{"$f":"D89*E89","v":0}]
[{"$f":"A86+1","v":6},"kompletní demontáž silničního bezpaticového ocelového stožáru VO (výška 10 m)"]
[null,"včetně dvouramenného výložníku, 2 svítidel, 2 svodových kabelů, elektrovýzbroje"]
[null,"s jištěním, koncovek kabelů - včetně montážní plošiny, potřebného nářadí, likvidace"]
[null,"výbojek, naložení, odvozu, likvidace a uložení odpadu","ks",1,null,{"$f":"D93*E93","v":0}]
[{"$f":"A90+1","v":7},"demontáž světlometu vč. nosné konstrukce a svodového kabelu - ze stávajícího"]
[null,"silničního stožáru VO určeného k demontáži (závěsná výška světlometu do 8 m) -"]
[null,"včetně montážní plošiny, potřebného nářadí, likvidace výbojky, naložení, odvozu,"]
[null,"likvidace a uložení odpadu","ks",1,null,{"$f":"D97*E97","v":0}]
[{"$f":"A94+1","v":8},"demontáž zapínacího rozváděče RVO na plastovém pilíři v zeleni vč. odstranění"]
[null,"pilíře a dlažby před rozváděčem (cca 1 m2), potřebného nářadí, dovozu ornice,"]
[null,"záhozu a zhutnění jámy, naložení, odvozu, likvidace a uložení odpadu, provedení"]
[null,"definitivní úpravy terénu  včetně dodání travního semene a osetí (cca 1 m2)","ks",1,null,{"$f":"D101*E101","v":0}]
[{"$f":"A98+1","v":9},"demontáž odbočného rozváděče RVOO na plastovém pilíři v zeleni vč. odstranění"]
[null,"pilíře, potřebného nářadí, dovozu ornice, záhozu a zhutnění jámy, naložení, odvozu,"]
[null,"likvidace a uložení odpadu, provedení definitivní úpravy terénu včetně dodání"]
[null,"travního semene a osetí (cca 1 m2)","ks",3,null,{"$f":"D105*E105","v":0}]
[{"$f":"A102+1","v":10},"demontáž smyčkovacího rozváděče RVOS na betonovém nebo zděném pilíři"]
[null,"v zeleni vč. zbourání a odstranění pilíře, potřebného nářadí, dovozu ornice, záhozu"]
[null,"a zhutnění jámy, naložení, odvozu, likvidace a uložení odpadu, provedení definit."]
[null,"úpravy terénu vč. dodání travního semene a osetí (cca 1 m2)","ks",1,null,{"$f":"D109*E109","v":0}]
[{"$f":"A106+1","v":11},"demontáž základu sadového stožáru VO rozměrů 0,6 x 0,6 m v zeleni - odkopání"]
[null,"základu a rozbití betonu a stožárového pouzdra do hloubky 0,7 m, vyčištění jámy"]
[null,"do hl. 0,7 m včetně naložení, odvozu, likvidace a uložení odpadu, zasypání jámy"]
[null,"tříděnou struskou (50 cm) a ornicí (horní vrstva 20 cm) - vč. potřeb. mechanismů"]
[null,"a nářadí, dodání a dovozu strusky a ornice, zhutnění záhozu, provedení definitivní"]
[null,"úpravy terénu (zeleň) vč. dodání travního semene a osetí trávou","ks",49,null,{"$f":"D115*E115","v":0}]
[{"$f":"A110+1","v":12},"demontáž základu silničního stožáru VO rozměrů 0,8 x 0,8 m - odkopání základu"]
[null,"a rozbití betonu a stožárového pouzdra do hloubky 0,7 m, vyčištění jámy"]
[null,"do hl. 0,7 m včetně naložení, odvozu, likvidace a uložení odpadu, zasypání jámy"]
[null,"tříděnou struskou (50 cm) a ornicí (horní vrstva 20 cm) - vč. potřeb. mechanismů"]
[null,"a nářadí, dodání a dovozu strusky a ornice, zhutnění záhozu, provedení definitivní"]
[null,"úpravy terénu (zeleň) vč. dodání travního semene a osetí trávou","ks",13,null,{"$f":"D121*E121","v":0}]
[{"$f":"A116+1","v":13},"demontáž základu silničního stožáru VO rozměrů do 0,8 x 0,8 m - řezání spár, rozbití"]
[null,"asfalt. povrchu, podkladového betonu a stožárového pouzdra do hloubky 0,7 m,"]
[null,"vyčištění jámy do hloubky 0,7 m včetně odvozu, likvidace a uložení odpadu,"]
[null,"zasypání jámy drceným kamenivem (55 cm) - vč. dodání a dovozu kameniva 8/16 mm,"]
[null,"zhutnění záhozu, obnovení beton. podkladové vrstvy chodníku (tloušťka do 10 cm)"]
[null,"a provedení definitivní úpravy povrchu (asfalt) vč. potřebných mechanismů a nářadí,"]
[null,"aplikace spojov. postřiku, zalití spár modifikovanou zálivkou, dodání betonu C20/25,"]
[null,"asfalt. směsi ABJ, spojovacího postřiku a modifikované zálivky","ks",1,null,{"$f":"D129*E129","v":0}]
[{"$f":"A122+1","v":14},"demontáž plastové skříňky s elektrovýzbrojí pro 2 okruhy s jištěním a 2 ks plast."]
[null,"ochranných trubek mezi skříňkou a zemí (bez poškození kabelů) - ze stávajícího"]
[null,"ocelového stožáru VO včetně montážní plošiny a potřebného nářadí, likvidace"]
[null,"výbojky, naložení, odvozu, likvidace a uložení odpadu","ks",1,null,{"$f":"D133*E133","v":0}]
[{"$f":"A130+1","v":15},"demontáž kabelu rozvodu VO (do průřezu 4 x 35 mm2 včetně) v zemi v místech"]
[null,"demont. stož. VO a rozváděčů vč. potřebného nářadí, naložení, odvozu, likvidace"]
[null,"a uložení odpadu","m",400,null,{"$f":"D136*E136","v":0}]
[]
[null,"Celkem",null,null,null,{"$f":"SUM(F70:F137)","v":0}]
[]
[]
["II.A","MONTÁŽE","m.j.","počet","      cena za m.j.","cena celkem"]
[]
[1,"kompletní světelné místo - silniční výložníkový osvětlovací stožár jmen. výšky"]
[null,"10 m v provedení s dříkem určeným k vetknutí do základu, jednoramenný výložník,"]
[null,"LED svítidlo, svodový kabel, elektrovýzbroj pro 1 okruh (min. IP2X) s jištěním,"]
[null,"zatažení kabelů (2 ks do 4 x 35 mm2 vč.) do stožáru, zapojení kabelů - včetně"]
[null,"montážní plošiny a potřebného nářadí","ks",6,null,{"$f":"D147*E147","v":0}]
[{"$f":"A143+1","v":2},"kompletní světelné místo - silniční výložníkový osvětlovací stožár jmen. výšky"]
[null,"8 m v provedení s dříkem určeným k vetknutí do základu, jednoramenný výložník,"]
[null,"LED svítidlo, svodový kabel, elektrovýzbroj pro 1 okruh (min. IP2X) s jištěním,"]
[null,"zatažení kabelů (2 ks do 4 x 35 mm2 vč.) do stožáru, zapojení kabelů - včetně"]
[null,"montážní plošiny a potřebného nářadí","ks",4,null,{"$f":"D152*E152","v":0}]
[{"$f":"A148+1","v":3},"kompletní světelné místo - silniční výložníkový osvětlovací stožár jmen. výšky"]
[null,"10 m v provedení s dříkem určeným k vetknutí do základu , dvouramenný výložník,"]
[null,"2 LED svítidla, 2 svod. kabely, elektrovýzbroj pro 2 okruhy (min. IP2X) s jištěním,"]
[null,"zatažení kabelů (2 ks do 4 x 35 mm2 vč.) do stožáru, zapojení kabelů - včetně"]
[null,"montážní plošiny a potřebného nářadí","ks",10,null,{"$f":"D157*E157","v":0}]
[{"$f":"A153+1","v":4},"kompletní světelné místo - silniční výložníkový osvětlovací stožár jmen. výšky"]
[null,"8 m v provedení s dříkem určeným k vetknutí do základu , dvouramenný výložník,"]
[null,"2 LED svítidla, 2 svod. kabely, elektrovýzbroj pro 2 okruhy (min. IP2X) s jištěním,"]
[null,"zatažení kabelů (2 ks do 4 x 35 mm2 vč.) do stožáru, zapojení kabelů - včetně"]
[null,"montážní plošiny a potřebného nářadí","ks",1,null,{"$f":"D162*E162","v":0}]
[{"$f":"A158+1","v":5},"kompletní světel. místo - kónický sadový ocelový osvětlovací stožár jmenovité"]
[null,"výšky 5 m v provedení s dříkem určeným k vetknutí do základu nebo v přírubovém"]
[null,"provedení vč. LED svítidla osazeného na dříku pomocí adaptéru, svodového kabelu,"]
[null,"elektrovýzbroje pro 1 okruh (min. IP2X) s jištěním, zatažení kabelů (2 ks do 4x35 mm2)"]
[null,"do stožáru, zapojení kabelů - včetně montážní plošiny a potřebného nářadí","ks",52,null,{"$f":"D167*E167","v":0}]
[{"$f":"A163+1","v":6},"kompletní světel. místo - kónický sadový ocelový osvětlovací stožár jmenovité"]
[null,"výšky 5 m v provedení s dříkem určeným k vetknutí do základu vč. dvouramenného"]
[null,"výložníku (vyložení 0,5 m), 2 LED svítidel, 2 svodových kabelů, elektrovýzbroje pro"]
[null,"2 okruhy (min. IP2X) s jištěním,  zatažení kabelů (2 ks do 4x35 mm2) do stožáru,"]
[null,"zapojení kabelů - včetně montážní plošiny a potřebného nářadí","ks",1,null,{"$f":"D172*E172","v":0}]
[{"$f":"A168+1","v":7},"očištění, odmaštění a kompletní nátěr spodní části dříku ocelového osvětlovacího"]
[null,"silničního stožáru do výšky 1,4 m nad zemí (dřík Ø168 mm) - 1 x zákl. nátěr na žárově"]
[null,"zinkovaný povrch, 2 x vrchní nátěr šedý  (RAL 7046), očíslování stožáru, označení"]
[null,"dvířek stožáru červeným výstražným bleskem -  včetně dodávky barev a dalšího"]
[null,"potřebného materiálu (štětce, ředidla, šablony, odmašťovací přípravek, samolepka"]
[null,"s výstražným bleskem)","ks",16,null,{"$f":"D178*E178","v":0}]
[{"$f":"A173+1","v":8},"očištění, odmaštění a kompletní nátěr spodní části dříku ocelového osvětlovacího"]
[null,"silničního stožáru do výšky 1,4 m nad zemí (dřík Ø159 mm) - 1 x zákl. nátěr na žárově"]
[null,"zinkovaný povrch, 2 x vrchní nátěr šedý  (RAL 7046), očíslování stožáru, označení"]
[null,"dvířek stožáru červeným výstražným bleskem -  včetně dodávky barev a dalšího"]
[null,"potřebného materiálu (štětce, ředidla, šablony, odmašťovací přípravek, samolepka"]
[null,"s výstražným bleskem)","ks",5,null,{"$f":"D184*E184","v":0}]
[{"$f":"A179+1","v":9},"očištění, odmaštění a kompletní nátěr spodní části dříku ocelového osvětlovacího"]
[null,"sadového stožáru do výšky 1,4 m nad zemí (dřík do Ø130 mm) - 1 x zákl. nátěr na žárově"]
[null,"zinkovaný povrch, 2 x vrchní nátěr šedý  (RAL 7046), očíslování stožáru, označení"]
[null,"dvířek stožáru červeným výstražným bleskem -  včetně dodávky barev a dalšího"]
[null,"potřebného materiálu (štětce, ředidla, šablony, odmašťovací přípravek, samolepka"]
[null,"s výstražným bleskem)","ks",53,null,{"$f":"D190*E190","v":0}]
[{"$f":"A185+1","v":10},"plastový zapínací rozváděč RVO (6 vývodový) na plastovém pilíři včetně"]
[null,"sestavení pilíře, zapojení rozváděče a osazení jištění, označení dvířek výstr. blesky,"]
[null,"popis rozváděče, vylepení schéma zapojení rozváděče na vnitřní stranu dvířek","ks",1,null,{"$f":"D193*E193","v":0}]
[{"$f":"A191+1","v":11},"zatažení a zapojení kabelu do stáv. bezpaticového stožáru VO, rozváděče nebo"]
[null,"trafostanice stávající ochrannou trubkou v základu vč. odkopání zeminy u stožáru,"]
[null,"rozváděče nebo trafostanice a následném záhozu výkopu zeminou, zhutnění záhozu"]
[null,"a uvedení povrchu (zeleň) do původ. stavu vč. dodání travního semene a osetí","ks",2,null,{"$f":"D197*E197","v":0}]
[{"$f":"A194+1","v":12},"zatažení kabelu do stáv. bezpaticového sadového stožáru VO vč. rozbití stávající"]
[null,"betonové patky a horní části základu, dodání a osazení ohebné plast. ochr. trubky"]
[null,"Ø40 mm pro průchod kabelu základem, dobetonování základu a zhotovení nové"]
[null,"betonové patky, dodání betonu C25/30-XF2, zapojení kabelu, likvidace a uložení"]
[null,"odpadu, úprava terénu do původ. stavu vč. dodání travního semene (v zeleni)","ks",4,null,{"$f":"D202*E202","v":0}]
[{"$f":"A198+1","v":13},"plastová skříňka s elektrovýzbrojí pro 2 okruhy (min. IP2X) a jištěním páskami"]
[null,"na stávající stožár, zapojení přívodních a svodových kabelů v elektrovýzbroji,"]
[null,"mechanická ochrana svodových kabelů v úseku od skříňky do stožáru,"]
[null,"utěsnění stávajícího otvoru pro svody ve stožáru, označení dvířek skříňky"]
[null,"výstražným bleskem, připojení skříňky na uzemnění, propojení neživých částí"]
[null,"s ochranným vodičem, označení zemniče, osazení 3 ks nových plast. ochranných"]
[null,"trubek kabelů VO od skříňky do země (2 ks) vč. přibetonování k základu,"]
[null,"oprava poškozené betonové patky kolem stožáru - na stávající stožár VO","ks",1,null,{"$f":"D210*E210","v":0}]
[{"$f":"A203+1","v":14},"odbočení kabelu ve stožáru (příplatek na zapojení třetího kabelu v elektrovýzbroji"]
[null,"a na osazení třetí ochranné plastové trubky Ø40 mm do základu stožáru)","ks",20,null,{"$f":"D212*E212","v":0}]
[{"$f":"A211+1","v":15},"smršťovací kabelová spojka pro kabely 1-AYKY-J 4 x 16 mm2 až 4 x 35 mm2","ks",2,null,{"$f":"D213*E213","v":0}]
[{"$f":"A213+1","v":16},"ukončení kabelu - kabelová koncovka smršťovací pro kabely 4 x 10 mm2 až"]
[null,"4 x 70 mm2 (všechny konce nových kabelů nebo zkrácených stávajících kabelů"]
[null,"ve stožárech nebo rozváděčích)","ks",170,null,{"$f":"D216*E216","v":0}]
[{"$f":"A214+1","v":17},"montáž kabelu 1-CYKY-J 3 x 50+35 mm2 volně ","m",90,null,{"$f":"D217*E217","v":0}]
[{"$f":"A217+1","v":18},"montáž kabelu CYKY-J 4 x 16 mm2 volně ","m",1100,null,{"$f":"D218*E218","v":0}]
[19,"montáž kabelu CYKY-J 4 x 10 mm2 volně ","m",1465,null,0]
[20,"montáž kabelu 1-AYKY-J 4 x 35 mm2 volně ","m",7,null,{"$f":"D220*E220","v":0}]
[21,"montáž kabelu 1-AYKY-J 4 x 16 mm2 volně ","m",655,null,{"$f":"D221*E221","v":0}]
[22,"příplatek za zatahování kabelu do trubkové chráničky (do 2 kg/m)","m",3227,null,{"$f":"D222*E222","v":0}]
[23,"příplatek za zatahování kabelu do trubkové chráničky (2 až 2,5 kg/m)","m",{"$f":"D217","v":90},null,{"$f":"D223*E223","v":0}]
[24,"ukončení 4 ks lanovaných žil kabelu 1-CYKY-J 3x50+35 mm2 kabelovými oky pro"]
[null,"zapojení do rozváděče RVO nebo vývodového rozváděče v trafostanici","ks",2,null,{"$f":"D225*E225","v":0}]
[]
[null,"Celkem",null,null,null,{"$f":"SUM(F143:F226)","v":0}]
[]
[]
["II.B","MONTÁŽE - materiál nosný","m.j.","počet","      cena za m.j.","cena celkem"]
[]
[1,"ocel. osvětlovací silniční bezpaticový stožár třístupňový jmenovité výšky 10 m"]
[null,"s ochrannou manžetou v místě vetknutí (Ø168/5 mm - délka 3,5 m, Ø133/4,5 mm -"]
[null,"délka 2,9 m, Ø89/4 mm - délka 3,3 m, délka vetknutí dříku do země 1,5 m, nadzemní"]
[null,"výška dříku 8,2 m, celková délka dříku 9,7 m, ochr. manžeta z plechu tl. min. 3 mm,"]
[null,"povrchová úprava celého stožáru oboustranným žárovým zinkováním, zapuštěná"]
[null,"dvířka 100 x 400 mm s uzamykáním zámkem na trojúhelníkový klíč, výška spodního"]
[null,"okraje dvířek 600 mm nad úrovní vetknutí, uvnitř dříku šroub M8 pro upevnění"]
[null,"elektrovýzbroje, ve spodní části dříku otvor se závitem M8 pro montáž uzemnění"]
[null,"cca 200 mm nad úrovní vetknutí, 3 matice a upevňovací šrouby M12 (200 mm od"]
[null,"vrcholu) pro upevnění výložníku)","ks",16,null,{"$f":"D241*E241","v":0}]
[{"$f":"A232+1","v":2},"ocel. osvětlovací silniční bezpaticový stožár třístupňový jmenovité výšky 8 m"]
[null,"s ochrannou manžetou v místě vetknutí (Ø159/5 mm - délka 3 m, Ø114/4,5 mm -"]
[null,"délka 2,8 m, Ø89/4 mm - délka 1,9 m, délka vetknutí dříku do země 1,5 m, nadzemní"]
[null,"výška dříku 6,2 m, celková délka dříku 7,7 m, ochr. manžeta z plechu tl. min. 3 mm,"]
[null,"povrchová úprava celého stožáru oboustranným žárovým zinkováním, zapuštěná"]
[null,"dvířka 100 x 400 mm s uzamykáním zámkem na trojúhelníkový klíč, výška spodního"]
[null,"okraje dvířek 600 mm nad úrovní vetknutí, uvnitř dříku šroub M8 pro upevnění"]
[null,"elektrovýzbroje, ve spodní části dříku otvor se závitem M8 pro montáž uzemnění"]
[null,"cca 200 mm nad úrovní vetknutí, 3 matice a upevňovací šrouby M12 (200 mm od"]
[null,"vrcholu) pro upevnění výložníku)","ks",5,null,{"$f":"D251*E251","v":0}]
[{"$f":"A242+1","v":3},"ocel. kónický osvětl. sadový bezpaticový stožár jmenovité nadzemní výšky 5 m"]
[null,"(Ø130 až 145 mm ve spodní části, Ø60 mm u vrcholu, tlouštka stěny dříku 4 mm,"]
[null,"délka vetknutí dříku do země 0,8 m, nadzemní výška dříku 5 m, celková délka dříku"]
[null,"5,8 m, povrch. úprava celého stožáru oboustranným žárovým zinkováním, zapuštěná"]
[null,"dvířka (min. 85 x 300 mm) s uzamykáním, výška spodního okraje dvířek 600 mm nad"]
[null,"úrovní vetknutí, uvnitř dříku šroub pro upevnění elektrovýzbroje, ve spodní části"]
[null,"dříku otvor se závitem pro montáž uzemnění cca 200 mm nad úrovní vetknutí)","ks",49,null,{"$f":"D258*E258","v":0}]
[{"$f":"A252+1","v":4},"ocelový kónický přírubový sadový osvětl. stožár jmenovité nadzemní výšky 5 m"]
[null,"(Ø120 až 135 mm ve spodní části, Ø60 mm u vrcholu, tlouštka stěny dříku 4 mm,"]
[null,"povrchová úprava celého stožáru oboustr. žárovým zinkováním, zapuštěná dvířka"]
[null,"(min. 85 x 300 mm) s uzamykáním, výška spodního okraje dvířek 600 mm nad spodní"]
[null,"částí příruby, uvnitř dříku šroub pro upevnění výzbroje, otvor v přírubě pro zemnič"]
[null,"FeZn Ø10 mm a šroub pro připojení uzemnění (cca 200 mm nad přírubou), příruba se"]
[null,"4 otvory pro kotevní šrouby (velikost příruby a velikost a rozteč kotevních šroubů"]
[null,"určí výrobce stožáru)), ocel. kotevní rošt (vhodný typ s požadovanými mechanic."]
[null,"vlastnostmi dodávaný pro konkrétní stožár výrobcem stožáru, povrchová úprava"]
[null,"min. v nadzemní části odolávající dlouhodobě povětrnostním vlivům - zinkování,"]
[null,"sváry v hloubce umožňující zalití betonem), potřebný spoj. materiál (4 x matice +"]
[null,"pružná podložka + uzavřená matice) v povrchové úpravě odolávající dlouhodobě"]
[null,"vnějším vlivům, 4 ks plast. krytek na kotevní šrouby s maticemi","ks",4,null,{"$f":"D271*E271","v":0}]
[{"$f":"A259+1","v":5},"ocelový obloukový jednoramenný výložník (vyložení 2,5 m, rameno Ø60/3,5 mm,"]
[null,"provedení pro osazení do dříku Ø89 mm stožárů specifikovaných v položce č. 1"]
[null,"kryt Ø102 mm proti zatékání vody do stožáru, svou výškou výložník doplňuje"]
[null,"závěsnou výšku svítidel na stožárech specifikovaných v položce č. 1 na 10 m,"]
[null,"úhel vyložení nezatíženého výložníku 4°, celý výložník oboustranně žárově"]
[null,"zinkovaný","ks",6,null,{"$f":"D277*E277","v":0}]
[{"$f":"A272+1","v":6},"ocel. obloukový dvouramenný výložník (vyložení 2,5 m, ramena Ø60/3,5 mm, výztuha"]
[null,"mezi rameny, provedení pro osazení do dříku Ø89 mm stožárů specifikovaných"]
[null,"v pol. č. 1, úhel sevření ramen 90°, kryt Ø102 mm proti zatékání vody do stožáru,"]
[null,"svou výškou výložník doplňuje závěsnou výšku svítidel na stožárech specifikov."]
[null,"v položce č. 1 na 10 m, úhel vyložení nezatíženého výložníku 4°, celý výložník"]
[null,"oboustranně žárově zinkovaný) celý výložník oboustranně žárově zinkovaný)","ks",3,null,{"$f":"D283*E283","v":0}]
[{"$f":"A278+1","v":7},"ocel. obloukový dvouramenný výložník (vyložení 2,5 m, ramena Ø60/3,5 mm, výztuha"]
[null,"mezi rameny, provedení pro osazení do dříku Ø89 mm stožárů specifikovaných"]
[null,"v pol. č. 1, úhel sevření ramen 180°, kryt Ø102 mm proti zatékání vody do stožáru,"]
[null,"svou výškou výložník doplňuje závěsnou výšku svítidel na stožárech specifikov."]
[null,"v položce č. 1 na 10 m, úhel vyložení nezatíženého výložníku 4°, celý výložník"]
[null,"oboustranně žárově zinkovaný) celý výložník oboustranně žárově zinkovaný)","ks",6,null,{"$f":"D289*E289","v":0}]
[{"$f":"A284+1","v":8},"ocel. obloukový dvouramenný výložník (vyložení 2,5 m, ramena Ø60/3,5 mm, výztuha"]
[null,"mezi rameny, provedení pro osazení do dříku Ø89 mm stožárů specifikovaných"]
[null,"v pol. č. 1, úhel sevření ramen 60°, kryt Ø102 mm proti zatékání vody do stožáru,"]
[null,"svou výškou výložník doplňuje závěsnou výšku svítidel na stožárech specifikov."]
[null,"v položce č. 1 na 10 m, úhel vyložení nezatíženého výložníku 4°, celý výložník"]
[null,"oboustranně žárově zinkovaný) celý výložník oboustranně žárově zinkovaný)","ks",1,null,{"$f":"D295*E295","v":0}]
[{"$f":"A290+1","v":9},"ocelový obloukový jednoramenný výložník (vyložení 2 m, rameno Ø60/3,5 mm,"]
[null,"provedení pro osazení do dříku Ø89 mm stožárů specifikovaných v položce č. 2,"]
[null,"kryt Ø102 mm proti zatékání vody do stožáru, svou výškou výložník doplňuje"]
[null,"závěs. výšku svítidel na stožárech specifikov. v položce č. 2 na 8 m, úhel"]
[null,"vyložení nezatíž. výložníku 4°, celý výložník oboustranně žárově zinkovaný","ks",4,null,{"$f":"D300*E300","v":0}]
[{"$f":"A296+1","v":10},"ocel. obloukový dvouramenný výložník (vyložení 2 m, ramena Ø60/3,5 mm, výztuha"]
[null,"mezi rameny, provedení pro osazení do dříku Ø89 mm stožárů specifikovaných"]
[null,"v pol. č. 2, úhel sevření ramen 180°, kryt Ø102 mm proti zatékání vody do stožáru,"]
[null,"svou výškou výložník doplňuje závěsnou výšku svítidel na stožárech specifikov."]
[null,"v položce č. 2 na 10 m, úhel vyložení nezatíženého výložníku 4°, celý výložník"]
[null,"oboustranně žárově zinkovaný) celý výložník oboustranně žárově zinkovaný)","ks",1,null,{"$f":"D306*E306","v":0}]
[{"$f":"A301+1","v":11},"ocelový dvouramenný přímý výložník (vyložení 0,5 m, ramena Ø60 mm, úhel sevření"]
[null,"ramen 180°, osazení na dřík kónického stožáru Ø60 mm - osazovací kus Ø76 mm"]
[null,"s min. 3 maticemi a upevňovacími šrouby, výložník nezvyšuje závěs. výšku svítidla"]
[null,"na stožáru, úhel vyložení nezatíž. výložníku 4°, celý výložník oboustranně žárově"]
[null,"zinkovaný)","ks",1,null,{"$f":"D311*E311","v":0}]
[{"$f":"A307+1","v":12},"stožárová elektrovýzbroj pro 1 jištěný okruh (min. IP2X) s pojistk. odpínačem"]
[null,"pro válcovou pojistku velikosti 10 x 38 mm, upevnění elektrovýzbroje na šroub"]
[null,"uvnitř stožáru, velikost elektrovýzbroje přizpůsobená vnitřnímu prostoru uvnitř"]
[null,"stožáru a velikosti dvířek (stožáry specifikované v položkách č. 1 a č. 2), nosná"]
[null,"konstrukce a svorky v povrchové úpravě odolávající korozi, čtyřsvorková,"]
[null,"připojení až 3 kabelů s žílami Cu/Al průřezu do 4x35 mm2 včetně","ks",10,null,{"$f":"D317*E317","v":0}]
[{"$f":"A312+1","v":13},"stožárová elektrovýzbroj pro 1 jištěný okruh (min. IP2X) s pojistk. odpínačem"]
[null,"pro válcovou pojistku velikosti 10 x 38 mm, upevnění elektrovýzbroje na šroub"]
[null,"uvnitř stožáru, velikost elektrovýzbroje přizpůsobená vnitřnímu prostoru uvnitř"]
[null,"stožáru a velikosti dvířek (stožáry specifikované v položkách č. 3 a č. 4), nosná"]
[null,"konstrukce a svorky v povrchové úpravě odolávající korozi, čtyřsvorková,"]
[null,"připojení až 3 kabelů s žílami Cu/Al průřezu min. 4x25 mm2 včetně","ks",52,null,{"$f":"D323*E323","v":0}]
[{"$f":"A318+1","v":14},"stožárová elektrovýzbroj pro 2 jištěné okruhy (min. IP2X) se 2 pojistk. odpínači"]
[null,"pro válcové pojistky velikosti 10 x 38 mm, upevnění elektrovýzbroje na šroub"]
[null,"uvnitř stožáru, velikost elektrovýzbroje přizpůsobená vnitřnímu prostoru uvnitř"]
[null,"stožáru a velikosti dvířek (stožáry specifikované v položkách č. 1 a č. 2), nosná"]
[null,"konstrukce a svorky v povrchové úpravě odolávající korozi, čtyřsvorková,"]
[null,"připojení až 3 kabelů s žílami Cu/Al průřezu do 4x35 mm2 včetně","ks",11,null,{"$f":"D329*E329","v":0}]
[{"$f":"A324+1","v":15},"stožárová elektrovýzbroj pro 2 jištěné okruhy (min. IP2X) se 2 pojistk. odpínači"]
[null,"pro válcové pojistky velikosti 10 x 38 mm, upevnění elektrovýzbroje na šroub"]
[null,"uvnitř stožáru, velikost elektrovýzbroje přizpůsobená vnitřnímu prostoru uvnitř"]
[null,"stožáru a velikosti dvířek (stožáry specifikované v položkách č. 3 a č. 4), nosná"]
[null,"konstrukce a svorky v povrchové úpravě odolávající korozi, čtyřsvorková,"]
[null,"připojení až 3 kabelů s žílami Cu/Al průřezu min 4x25 mm2","ks",1,null,{"$f":"D335*E335","v":0}]
[{"$f":"A330+1","v":16},"stožárová elektrovýzbroj pro 2 jištěné okruhy (min. IP2X) se 2 poj. odpínači pro"]
[null,"pro válc. pojistky velikosti 10 x 38 mm, upevnění elektrovýzbroje v plast. skříňce,"]
[null,"velikost elektrovýzbroje přizpůsobená vnitřnímu prostoru skříňky (skříňky specif."]
[null,"v pol. č. 17), nosná konstrukce a svorky v povrch. úpravě odolávající korozi,"]
[null,"čtyřsvorková, připojení až 3 kabelů s žílami Cu/Al průřezu do 4x35 mm2 včetně","ks",1,null,{"$f":"D340*E340","v":0}]
[{"$f":"A336+1","v":17},"plastová skříňka (380 mm x 300 mm x 120 mm, šedá, min. IP55, vhodná do venkov."]
[null,"prostředí, samozhášivý materiál, teplotní odolnost min. -25°C až +60°C°), nosná"]
[null,"konstrukce (pozink.) a potřebný spojovací materiál (nerez páska se sponami) pro"]
[null,"upevnění skříňky k dříku stožáru, materiál pro připojení ochranného vodiče"]
[null,"na uzemnění (CY 16 mm2 - 1 m, šroub M8 s pružnou podložkou), 6 ks průchodek"]
[null,"průchodek pro vyvedení kabelů ze skříňky (1 x CYKY-J 4x16, 2 x AYKY-J 4x35,"]
[null,"2 x CYKY 3x1,5, 1 x CY16), tmel pro utěsnění vrtaných otvorů (2 ks) v dříku,"]
[null,"materiál pro mechan. ochranu svodu mezi skříňkou a dříkem stožáru a při průchodu"]
[null,"svodu dříkem samolepka výstražného blesku na dvířka, beton C25/30 XF2 pro"]
[null,"přibetonování trubek k základu a pro opravu stávající betonové patky","ks",1,null,{"$f":"D350*E350","v":0}]
[{"$f":"A341+1","v":18},"plastová ochranná trubka Æ 40 mm (černá, samozhášivý materiál, teplotní odolnost"]
[null,"alespoň -25°C až +60°C, mechanická odolnost min. 750N/5cm, vhodná pro"]
[null,"venkovní použití) - vč. ztratného prořezem","m",2,null,{"$f":"D353*E353","v":0}]
[{"$f":"A351+1","v":19},"válcová pojistka vel. 10 x 38, jmen. proud 6 A, charakteristika gG","ks",88,null,{"$f":"D354*E354","v":0}]
[{"$f":"A354+1","v":20},"válcová pojistka vel. 14 x 51, jmen. proud 16 A, charakteristika gG","ks",12,null,{"$f":"D355*E355","v":0}]
[{"$f":"A355+1","v":21},"nožová pojistka vel. 1, jmen. proud 80 A, charakteristika gG","ks",3,null,{"$f":"D356*E356","v":0}]
[{"$f":"A356+1","v":22},"smršťovací rozdělovací hlava pro kabely 4x6 až 4x50 mm2 (pro ukončení kabelů"]
[null,"ve stožárech nebo rozváděčích)","ks",170,null,{"$f":"D358*E358","v":0}]
[{"$f":"A357+1","v":23},"odboč. ve stožáru - dodání 1 ks plastové ohebné ochranné trubky Ø40 mm délky"]
[null,"1 m pro průchod kabelu VO základem stožáru","ks",20,null,{"$f":"D360*E360","v":0}]
[{"$f":"A359+1","v":24},"ocelový trubkový adaptér (redukce) s povrchovou úpravou odolávající dlouhodobě"]
[null,"povětrnostním vlivům (pozink.) pro upevnění LED svítidla s bočním otvorem pro"]
[null,"montáž na výložník Ø60 mm na dřík stožáru kónického stožáru s horním průměrem"]
[null,"dříku 60 mm (před objednáním nutno ověřit přesné skutečné provedení stožárů"]
[null,"specifikovaných v položkách č. 3 a č. 4)","ks",52,null,{"$f":"D365*E365","v":0}]
[{"$f":"A361+1","v":25},"LED svítidlo typu 1 - Voltana 4, 32 LED, 700 mA, světelný tok min. 8900 lm, 75 W,"]
[null,"optika 5139, aktivní funkce udržování konstantního světelného toku po celou dobu"]
[null,"života, barva světla neutrálně bílá - 4000 K, aktivované autonomní stmívání svítidla"]
[null,"v přednastaveném provozním režimu (od sepnutí do 22 hod. 100 % světelného toku,"]
[null,"od 22 hod. do 23 hod. 75 % světel. toku, od 23 hod. do 04 hod. 50 % světel. toku,"]
[null,"od 04 hod. do 05 hod. 75 % světel. toku, od 05 hod. do vypnutí 100 % světelného"]
[null,"toku), třída ochrany I, barevné provedení šedá RAL 7038 - Poznámka: Stavba"]
[null,"bezprostředně navazuje na stavbu „Rekonstrukce VO oblast Lužická“realizovanou"]
[null,"v roce 2015, v jejímž rámci byla použita svítidla Voltana - vzhledem k uvedeným"]
[null,"skutečnostem je požadováno použití LED svítidel shodného vzhledu i optických"]
[null,"vlastností","ks",26,null,{"$f":"D376*E376","v":0}]
[{"$f":"A366+1","v":26},"LED svítidlo typu 2 - Voltana 3, 24 LED, 500 mA, světelný tok min. 5080 lm, 41 W,"]
[null,"optika 5139, aktivní funkce udržování konstantního světelného toku po celou dobu"]
[null,"života, barva světla neutrálně bílá - 4000 K, aktivované autonomní stmívání svítidla"]
[null,"v přednastaveném provozním režimu (od sepnutí do 22 hod. 100 % světelného toku,"]
[null,"od 22 hod. do 23 hod. 75 % světel. toku, od 23 hod. do 04 hod. 50 % světel. toku,"]
[null,"od 04 hod. do 05 hod. 75 % světel. toku, od 05 hod. do vypnutí 100 % světelného"]
[null,"toku), třída ochrany I, barevné provedení šedá RAL 7038 - Poznámka: Stavba"]
[null,"bezprostředně navazuje na stavbu „Rekonstrukce VO oblast Lužická“realizovanou"]
[null,"v roce 2015, v jejímž rámci byla použita svítidla Voltana - vzhledem k uvedeným"]
[null,"skutečnostem je požadováno použití LED svítidel shodného vzhledu i optických"]
[null,"vlastností","ks",6,null,{"$f":"D387*E387","v":0}]
[{"$f":"A377+1","v":27},"LED svítidlo typu 3 - Voltana 2, 16 LED, 500 mA, světelný tok min. 3410 lm, 28 W,"]
[null,"optika 5112, aktivní funkce udržování konstantního světelného toku po celou dobu"]
[null,"života, barva světla neutrálně bílá - 4000 K, aktivované autonomní stmívání svítidla"]
[null,"v přednastaveném provozním režimu (od sepnutí do 22 hod. 100 % světelného toku,"]
[null,"od 22 hod. do 23 hod. 75 % světel. toku, od 23 hod. do 04 hod. 50 % světel. toku,"]
[null,"od 04 hod. do 05 hod. 75 % světel. toku, od 05 hod. do vypnutí 100 % světelného"]
[null,"toku), třída ochrany I, barevné provedení šedá RAL 7038 - Poznámka: Stavba"]
[null,"bezprostředně navazuje na stavbu „Rekonstrukce VO oblast Lužická“realizovanou"]
[null,"v roce 2015, v jejímž rámci byla použita svítidla Voltana - vzhledem k uvedeným"]
[null,"skutečnostem je požadováno použití LED svítidel shodného vzhledu i optických"]
[null,"vlastností","ks",44,null,{"$f":"D398*E398","v":0}]
[{"$f":"A388+1","v":28},"LED svítidlo typu 4 - Voltana 2, 16 LED, 350 mA, světelný tok min. 2530 lm, 20 W,"]
[null,"optika 5112, aktivní funkce udržování konstantního světelného toku po celou dobu"]
[null,"života, barva světla neutrálně bílá - 4000 K, aktivované autonomní stmívání svítidla"]
[null,"v přednastaveném provozním režimu (od sepnutí do 22 hod. 100 % světelného toku,"]
[null,"od 22 hod. do 23 hod. 75 % světel. toku, od 23 hod. do 04 hod. 50 % světel. toku,"]
[null,"od 04 hod. do 05 hod. 75 % světel. toku, od 05 hod. do vypnutí 100 % světelného"]
[null,"toku), třída ochrany I, barevné provedení šedá RAL 7038 - Poznámka: Stavba"]
[null,"bezprostředně navazuje na stavbu „Rekonstrukce VO oblast Lužická“realizovanou"]
[null,"v roce 2015, v jejímž rámci byla použita svítidla Voltana - vzhledem k uvedeným"]
[null,"skutečnostem je požadováno použití LED svítidel shodného vzhledu i optických"]
[null,"vlastností","ks",10,null,{"$f":"D409*E409","v":0}]
[{"$f":"A399+1","v":29},"smršťovací kabelová spojka NN pro kabely 1-AYKY-J 4x35 vč. příslušenství","ks",1,null,{"$f":"D410*E410","v":0}]
[{"$f":"A410+1","v":30},"smršťovací kabelová spojka NN pro kabely 1-AYKY-J 4x16 vč. příslušenství","ks",1,null,{"$f":"D411*E411","v":0}]
[31,"lisovací kabelové oko pro připojení žíly kabelu Cu 35 mm2 (lanované jádro)","ks",2,null,{"$f":"D412*E412","v":0}]
[32,"lisovací kabelové oko pro připojení žíly kabelu Cu 50 mm2 (lanované jádro)","ks",6,null,0]
[33,"kabel CYKY-J 3x1,5 mm2 RE vč. ztratného prořezem","m",719,null,{"$f":"E414*D414","v":0}]
[34,"kabel 1-CYKY-J 3x50+35 mm2 SM vč. ztratného prořezem","m",90,null,{"$f":"E415*D415","v":0}]
[35,"kabel CYKY-J 4x16 mm2 RE vč. ztratného prořezem","m",1100,null,{"$f":"E416*D416","v":0}]
[36,"kabel CYKY-J 4x10 mm2 RE vč. ztratného prořezem","m",1465,null,0]
[37,"kabel 1-AYKY-J 4x35 mm2 RE vč. ztratného prořezem","m",7,null,{"$f":"E418*D418","v":0}]
[38,"kabel 1-AYKY-J 4x16 mm2 RE vč. ztratného prořezem","m",655,null,{"$f":"E419*D419","v":0}]
[]
[null,"Celkem",null,null,null,{"$f":"SUM(F232:F420)","v":0}]
[]
[]
["III.A"," UZEMNĚNÍ - montáž","m.j.","počet","      cena za m.j.","cena celkem"]
[]
[1,"zemnič FeZn Ć 10","m",1565,null,{"$f":"ROUND((D426*E426),-1)","v":0}]
[{"$f":"A426+1","v":2},"připojení uzemnění konstrukce stožáru nebo rozváděče vč. montáže zemnící svorky,"]
[null,"přizemnění ochr. vodiče, označení zemniče samolepkou vč. dodání samolepky","ks",75,null,{"$f":"E428*D428","v":0}]
[{"$f":"A427+1","v":3},"nátěr zemniče FeZn Ø10 mm (základní na žár. zinek + 2 x vrchní šedý RAL 7046)"]
[null," vč. dodání barevy a potřeb. materiálu (štětce, ředidlo), dodání a osazení zž"]
[null,"smršťovací trubice na zemnič","m",113,null,{"$f":"E431*D431","v":0}]
[{"$f":"A429+1","v":4},"pevné spojení zemniče v zemi (2 svorky)  vč. ošetření spoje gumoasfaltovým"]
[null,"nátěrem a dodání příslušného gumoasfaltového nátěru","ks",43,null,{"$f":"E433*D433","v":0}]
[]
[null,"Celkem",null,null,null,{"$f":"SUM(F426:F434)","v":0}]
[]
[]
["III.B"," UZEMNĚNÍ - materiál nosný","m.j.","počet","      cena za m.j.","cena celkem"]
[]
[1,"zemnič FeZn Ć10 mm vč. ztratného prořezem","kg",979,null,{"$f":"ROUND((D440*E440),0)","v":0}]
[{"$f":"A440+1","v":2},"stožárová zkušební zemnící svorka pro zemnič FeZn Ø10 mm vč. upevňovacího"]
[null,"materiálu (vše v povrch. úpravě odolávající dlouhodobě povětrnostním vlivům)","ks",75,null,{"$f":"E442*D442","v":0}]
[{"$f":"A441+1","v":3},"spojovací svorka pro zemnič FeZn Ø10 mm v povrch. úpravě odolávající"]
[null,"dlouhodobě povětrnostním vlivům","ks",86,null,{"$f":"E444*D444","v":0}]
[]
[null,"Celkem",null,null,null,{"$f":"SUM(F440:F445)","v":0}]
[]
[]
["IV.","ZEMNÍ PRÁCE","m.j.","počet","      cena za m.j.","cena celkem"]
[]
[1,"kompletní základ osvětl. stožáru jmen. výšky 10 m s dříkem určeným k vetknutí do"]
[null,"základu (provedení dle výkr. VO-938/504) vč. výkopu jámy, zabezpečení výkopu"]
[null,"proti sesuvu, zhotovení beton. podkladové desky, osazení stožárového pouzdra,"]
[null,"založení  2ks plast. ohebných ochran. trubek Ø40 mm pro průchod kabelů základem,"]
[null,"utěsnění otvorů kolem trubek PU pěnou, kompletní zabetonování základu včetně"]
[null,"nadzemní hlavice, zapískování stožárového pouzdra, zához jámy zeminou, zhutnění"]
[null,"záhozu, naložení, odvoz a uložení přebytečné zeminy a sutě na skládku - provedení"]
[null,"v zeleni vč. definit. úpravy povrchu (zeleň), dodání stožár. pouzdra, betonu, písku,"]
[null,"ochranných trubek, PU pěny a travního semene","ks",16,null,{"$f":"E459*D459","v":0}]
[{"$f":"A451+1","v":2},"kompletní základ osvětl. stožáru jmen. výšky 8 m s dříkem určeným k vetknutí do"]
[null,"základu (provedení dle výkr. VO-938/504) vč. výkopu jámy, zabezpečení výkopu"]
[null,"proti sesuvu, zhotovení beton. podkladové desky, osazení stožárového pouzdra,"]
[null,"založení  2ks plast. ohebných ochran. trubek Ø40 mm pro průchod kabelů základem,"]
[null,"utěsnění otvorů kolem trubek PU pěnou, kompletní zabetonování základu včetně"]
[null,"nadzemní hlavice, zapískování stožárového pouzdra, zához jámy zeminou, zhutnění"]
[null,"záhozu, naložení, odvoz a uložení přebytečné zeminy a sutě na skládku - provedení"]
[null,"v zeleni vč. definit. úpravy povrchu (zeleň), dodání stožár. pouzdra, betonu, písku,"]
[null,"ochranných trubek, PU pěny a travního semene","ks",5,null,{"$f":"E468*D468","v":0}]
[{"$f":"A460+1","v":3},"kompletní základ kónického osvětlovacího stožáru jm. výšky 5 m s dříkem určeným"]
[null,"k vetknutí do základu (provedení dle výkresu VO-938/505) včetně výkopu jámy,"]
[null,"zabezpečení výkopu proti sesuvu, zhotovení beton. podkladové desky, osazení"]
[null,"stožárového pouzdra, založení  2ks plast. oheb.ochranných trubek Ø40 mm pro"]
[null,"průchod kabelů základem, kompletní zabetonování základu vč. nadzemní hlavice,"]
[null,"zapískování stožárového pouzdra, zához jámy zeminou, zhutnění záhozu, odvoz"]
[null,"a uložení přebytečné zeminy a sutě na skládku - provedení v zeleni vč. definitivní"]
[null,"úpravy povrchu (zeleň), dodání stožárového pouzdra, betonu, písku, ochranných"]
[null,"trubek a travního semene","ks",49,null,{"$f":"E477*D477","v":0}]
[{"$f":"A469+1","v":4},"kompletní základ kónického osvětlovacího přírubového stožáru jm. výšky 5 m"]
[null,"(provedení dle výkr. VO-938/505) vč. výkopu jámy, zabezpečení výkopu proti"]
[null,"sesuvu, osazení základ. roštu,osazení 2 ks plast. ohebných ochranných trubek"]
[null,"Ø40 mm pro průchod kabelů základem a 1 ks trubky Ø20 mm pro odvod vody,"]
[null,"kompletní zabetonování základu s armováním a provařením armování a základ."]
[null,"roštu, záhozu jámy, zhutnění záhozu, naložení, odvozu a uložení přebytečné"]
[null,"zeminy a sutě na skládku - provedení v zeleni vč. def. úpravy povrchu (zeleň),"]
[null,"dodání betonu, travního semene, trubek, ocel. betonářské výztuže Ø16 mm","ks",4,null,{"$f":"E485*D485","v":0}]
[{"$f":"A478+1","v":5},"příplatek na provedení prohloubeného základu stožáru jmen. výšky 10 m s dříkem"]
[null,"určeným k vetknutí do země v ochr. pásmu vodovodu (prohloubení základu o 0,5 m"]
[null,"proti standard. provedení) - vč. zabezpečení výkopu proti sesuvu, dodání betonu"]
[null,"C25/30-XF2, 0,5 m stožár. pouzdra, písku, bednění, záhozu výkopu zeminou, zhutnění"]
[null,"záhozu, naložení, odvozu a uložení přebytečné zeminy a sutě na skládku","ks",6,null,{"$f":"E490*D490","v":0}]
[{"$f":"A486+1","v":6},"příplatek na provedení prohloubeného základu stožáru jmen. výšky 5 m s dříkem"]
[null,"určeným k vetknutí do země v ochr. pásmu vodovodu (prohloubení základu o 1,2 m"]
[null,"proti standard. provedení) - vč. zabezpečení výkopu proti sesuvu, dodání betonu"]
[null,"C25/30-XF2, 0,5 m stožár. pouzdra, písku, bednění, záhozu výkopu zeminou, zhutnění"]
[null,"záhozu, naložení, odvozu a uložení přebytečné zeminy a sutě na skládku","ks",2,null,{"$f":"E495*D495","v":0}]
[{"$f":"A491+1","v":7},"zabetonování základového roštu pilíře rozváděče RVO v zeleni vč. výkopu jámy"]
[null,"pro základový rošt, úpravy terénu, naložení, odvozu a uložení přebytečné zeminy"]
[null,"a sutě na skládku včetně dodání betonu C25/30-XF2 a travního semene","ks",1,null,{"$f":"E498*D498","v":0}]
[{"$f":"A496+1","v":8},"provedení základu pro sloupek DZ vč. výkopu pro základ (0,3 x 0,3 x 0,5 m),"]
[null,"zabetonování základu, montáže sloupku, úpravy terénu (v zeleni), naložení,"]
[null,"odvozu a uložení odpadu na skládku vč. dodání sloupku (Al nebo pozink.), kotev."]
[null,"roštu, spojovacího materiálu, betonu C25/30-XF2 a travního semene","ks",4,null,{"$f":"E502*D502","v":0}]
[{"$f":"A499+1","v":9},"vytvoření zpevněné dlážděné plochy 1,4 x 1 m v zeleni před zapínacím rozváděčem"]
[null,"vč. úpravy terénu kolem RVO, osazení obrubníků, zhotovení struskové podkladové"]
[null,"vrstvy, vydláždění povrchu zpevněné plochy, vyspárování, naložení, odvoz a uložení"]
[null,"přebytečné zeminy a sutě na skládku, dodání obrubníků, betonu C20/25, drceného"]
[null,"kameniva 4/8 mm, šedé zámkové dlažby typu kost tloušťky 60 mm a písku","ks",1,null,{"$f":"E507*D507","v":0}]
[{"$f":"A503+1","v":10},"kabelová rýha 35/50 cm v zeleni (provedení dle výkresu VO-938/506) včetně"]
[null,"výstražné fólie, potřebných sond, záhozu zeminou (vrstva do 8 cm nad chráničku"]
[null,"bez kamenů a hrubých nečistot) včetně zhutnění záhozu, naložení a odvoz zeminy"]
[null,"a sutě s uložením na skládku, uvedení plochy do původního stavu, osetí trávou -"]
[null,"včetně zbavení zeminy (vrstva 20 cm) větších kamenů a hrubých nečistot, dodávky"]
[null,"červené výstražné fólie š=33 cm a travního semene","m",2020,null,{"$f":"E513*D513","v":0}]
[{"$f":"A508+1","v":11},"kabelová rýha 35/50 cm v asfalt. chodníku (provedení dle výkresu VO-938/506)"]
[null,"s drážkou pro uložení zemniče v hloubce min. 50 cm vč. řezání spár, rozbití asfalt."]
[null,"povrchu v šíři 1,55 m a beton. podklad. vrstvy, uložení výstr. fólie, potřeb. sond,"]
[null,"záhozu výkopu drceným kamenivem, zhutnění záhozu, odvozu zeminy a sutě"]
[null,"s uložením na skládku, obnovení betonové podklad. vrstvvy (tl. 10 cm), aplikace"]
[null,"spojov. postřiku a uvedení asfalt. povrchu (tl. 5 cm) v šíři 1,55 m do původ. stavu,"]
[null,"zalití pracovních spár modifikovanou zálivkou - vč. dodávky drceného kameniva"]
[null,"frakce 4/8  a 8/16 mm, červené výstr. fólie š=33 cm, betonu C20/25, spojovacího"]
[null,"postřiku, asfalt. hmoty (typ dle stáv. povrchu), modifikované zálivky","m",294,null,{"$f":"E522*D522","v":0}]
[{"$f":"A514+1","v":12},"kabelová rýha 35/50 cm v dlážděném chodníku s povrchem ze zámkové dlažby"]
[null,"(provedení dle výkresu VO-938/506) s drážkou pro uložení zemniče v hloubce"]
[null,"min. 50 cm včetně rozebrání dlažby v šíři 1,55 m, očištění a uložení dlažby, rozbití"]
[null,"podkladové vrstvy chodníku, výstražné fólie, potřebných sond, záhozu výkopu"]
[null,"drceným kamenivem, zhutnění záhozu, naložení a odvozu zeminy a sutě s uložením"]
[null,"na skládku, obnovení podkladové vrstvy chodníku a uvedení povrchu (předláždění)"]
[null,"do původ. stavu v šíři 1,55 m, vyspárování dlažby - včetně dodávky písku, drceného"]
[null,"kameniva frakce 4/8 a 8/16 mm, červené výstr. fólie š=33 cm, dodání nové zámkové"]
[null,"dlažby pro 20 % dotčeného povrchu (tj. 0,31 m2) - dle druhu stáv. dlažby","m",4,null,{"$f":"E531*D531","v":0}]
[{"$f":"A523+1","v":13},"kabelová rýha 35/50 cm v dlážděném chodníku s povrchem z beton. dlažby 30x30 cm"]
[null,"(provedení dle výkresu VO-938/506) s drážkou pro uložení zemniče v hloubce"]
[null,"min. 50 cm včetně rozebrání dlažby v šíři 1,55 m, očištění a uložení dlažby, rozbití"]
[null,"podkladové vrstvy chodníku, výstražné fólie, potřebných sond, záhozu výkopu"]
[null,"drceným kamenivem, zhutnění záhozu, naložení a odvozu zeminy a sutě s uložením"]
[null,"na skládku, obnovení podkladové vrstvy chodníku a uvedení povrchu (předláždění)"]
[null,"do původního stavu v šíři 1,55 m, vyspárování dlažby - včetně dodávky písku,"]
[null,"drceného kameniva frakce 4/8 a 8/16 mm, červené výstr. fólie š=33 cm, dodání nové"]
[null,"betonové dlažby 30x30 cm pro 50 % dotčeného povrchu (tj. 0,775 m2)","m",16,null,{"$f":"E540*D540","v":0}]
[{"$f":"A532+1","v":14},"kabelová rýha 35/50 cm v dlážděném chodníku s povrchem z beton. dlažby 50x50 cm"]
[null,"(provedení dle výkresu VO-938/506) s drážkou pro uložení zemniče v hloubce"]
[null,"min. 50 cm včetně rozebrání dlažby v šíři 1,55 m, očištění a uložení dlažby, rozbití"]
[null,"podkladové vrstvy chodníku, výstražné fólie, potřebných sond, záhozu výkopu"]
[null,"drceným kamenivem, zhutnění záhozu, naložení a odvozu zeminy a sutě s uložením"]
[null,"na skládku, obnovení podkladové vrstvy chodníku a uvedení povrchu (předláždění)"]
[null,"do původního stavu v šíři 1,55 m, vyspárování dlažby - včetně dodávky písku,"]
[null,"drceného kameniva frakce 4/8 a 8/16 mm, červené výstražné fólie š=33 cm, dodání"]
[null,"nové betonové dlažby 50x50 cm pro 50 % dotčeného povrchu (tj. 0,775 m2)","m",2,null,{"$f":"E549*D549","v":0}]
[{"$f":"A541+1","v":15},"kabelová rýha 35/50 cm v beton. chodníku (provedení dle výkresu VO-938/506)"]
[null,"s drážkou pro uložení zemniče v hloubce min. 50 cm vč. řezání spár, odstranění"]
[null,"stáv. beton. povrchu v šíři 1,55 m, výstražné fólie, potřebných sond, záhozu výkopu"]
[null,"drceným kamenivem, zhutnění záhozu, odvozu zeminy a sutě s uložením na skládku,"]
[null,"obnovení betonového povrchu v šíři 1,55 m do původ. stavu - vč. dodávky drceného"]
[null,"kameniva frakce 4/8 a 8/16 mm, červené výstr. fólie š=33 cm a betonu C25/30-XF2","m",7,null,{"$f":"E555*D555","v":0}]
[{"$f":"A550+1","v":16},"kabelová rýha 35/50 cm pod dnem odvodňovacího žlabu - rozebrání žlabu v šíři"]
[null,"0,5 m vč. očištění a uložení, výkop rýhy vč. uložení výstražné fólie, záhozu drceným"]
[null,"kamenivem, zhutnění záhozu, odvozu zeminy a sutě s uložením na skládku, uvedení"]
[null,"uvedení žlabu do původního stavu (uložení do betonu) s vyspárováním - včetně"]
[null,"dodávky betonu C20/25, drceného kameniva frakce 4/8 a 8/16 mm, červené výstr."]
[null,"fólie š=33 cm, dodání nových odvodň. žlabů pro 50% dotčené délky (tj. 0,5 m)","m",4,null,{"$f":"E561*D561","v":0}]
[{"$f":"A556+1","v":17},"kabelová rýha 50/120 přes asfalt. komunikaci (provedení dle výkresu VO-938/506)"]
[null,"vč. řezání spár, rozbití povrchu a podkladové vrstvy v šíři 2,5 m, potřeb. sond,"]
[null,"zabezpečení výkopu proti sesuvu, uložení 2 ks plastových ochranných trubek"]
[null,"HDPE Ø110 mm (rezervní trubku na koncích utěsnit proti zanášení PU pěnou),"]
[null,"obetonování trubek, červené výstražné fólie, záhozu výkopu štěrkodrtíí včetně"]
[null,"zhutnění po vrstvách tl. max. 20 cm, naložení a odvozu zeminy a sutě s uložením"]
[null,"na skládku, obnovení podkladové konstrukční beton. vrstvy komunikace (15 cm)"]
[null,"a uvedení povrchu v šíři 2,5 m do původního stavu (2 x spojovací postřik, asfaltový"]
[null,"beton, zalití spár modifik. zálivkou) - vč. dodávky betonu C20/25, štěrkodrti ŠDA"]
[null,"0/32 mm, červené výstr. fólie š=33 cm, 2 ks ochranných trubek HDPE Ø110 mm,"]
[null,"PU pěny, spoj. postřiku a asfalt. betonu ACO 11+ACP16 (dle stáv. povrchu)","m",18,null,{"$f":"E572*D572","v":0}]
[{"$f":"A562+1","v":18},"zhotovení otvoru 100 x 100 mm v betonové opěrné zídce tl. do 300 mm v hloubce"]
[null,"50 cm pod úrovní terénu pro průchod ochranných trubek Ø75 mm - vč. odkopání"]
[null,"zídky zeminy na obou stranách (výkop zeminy 0,8 x 0,8 x 0,8 m a 0,8 x 0,8 x 1,3 m),"]
[null,"zabezpečení výkopu hloubky nad 1 m proti sesuvu, osazení trubky, dobetonování"]
[null,"zídky, zához výkopu, zhutnění záhozu, provedení def. úpravy terénu (zeleň), dodání"]
[null,"betonu C20/25 a travního semene, naložení, odvoz a likvidace odpadu","ks",1,null,{"$f":"E578*D578","v":0}]
[{"$f":"A573+1","v":19},"vyhledání a vyčištění stávajících prostupů pod komunikací","m",17,null,{"$f":"E579*D579","v":0}]
[{"$f":"A579+1","v":20},"řízený protlak pod komunikací - 1 x trubka Ć 110 mm (hloubka min. 120 cm) včetně"]
[null,"dodání chráničky z HDPE Ć 110 mm a spojek, potřebné mechanismy (výměra"]
[null,"položky zahrnuje i rezervu pro zhotovení protlaků v případě neprostupnosti stáv."]
[null,"prostupů - předpoklad 60% neprostupných stávajících prostupů) ","m",79,null,{"$f":"E583*D583","v":0}]
[{"$f":"A580+1","v":21},"provedení 2 jam (vstup a výstup) pro protlak pod komunikací v hloubce min. 120 cm"]
[null,"včetně zabezpečení výkopu proti sesuvu, záhozu a zhutnění výkopu, odvozu"]
[null,"přebytečné zeminy a sutě s uložením na skládku, úprava terénu (zeleň) do"]
[null,"původního stavu vč. osetí trávou a dodání travního semene (výměra položky"]
[null,"zahrnuje i jámy pro protlaky zhotovené v případě neprostupnosti stávajících"]
[null,"prostupů - předpoklad 60% neprostupných stávajících prostupů) ","ks",7,null,{"$f":"E589*D589","v":0}]
[{"$f":"A584+1","v":22},"protlak tr. HDPE Ć 75 mm v hl. min. 50 cm pod chodníkem včetně dodání"]
[null,"chráničky z HDPE Æ 75 mm","m",9,null,{"$f":"E591*D591","v":0}]
[{"$f":"A590+1","v":23},"provedení 2 jam (vstup a výstup) pro protlak pod chodníkem v hloubce min. 50 cm"]
[null,"včetně zabezpečení výkopu proti sesuvu, záhozu a zhutnění výkopu, odvozu"]
[null,"přebytečné zeminy a sutě s uložením na skládku, úprava terénu (zeleň) do"]
[null,"původního stavu vč. osetí trávou a dodání travního semene","ks",1,null,{"$f":"E595*D595","v":0}]
[{"$f":"A592+1","v":24},"provedení kopané sondy v asfaltové komunikaci (do hl. 150 cm) pro ověření"]
[null,"hloubky uložení stávajících inž. sítí - řezání spár, rozbití asf. povrchu (1 m2)"]
[null,"a podkladové vrstvy komunikace, výkop jámy, zajištění výkopu proti sesuvu, zásyp"]
[null,"výkopu štěrkodrtí vč. zhutnění, zhotovení nové podkladové vrstvy komunikace"]
[null,"a uvedení povrchu do původ. stavu vč. zalití pracovních spár modifikovanou zálivkou,"]
[null,"naložení, odvoz a likvidace odpadu, dodání betonu C20/25, štěrkodrti ŠDA frakce"]
[null,"0/32 mm, spoj. postřiku (2x), asfaltového betonu ACO 11+ACP16 (dle stáv. povrchu)"]
[null,"a modifikované zálivky, naložení, odvoz a likvidace odpadu","ks",3,null,{"$f":"E603*D603","v":0}]
[{"$f":"A596+1","v":25},"provedení kopané sondy v zeleni (do hl. 100 cm) pro ověření polohy a hloubky"]
[null,"uložení stávajících inž. sítí - výkop jámy 0,5 m x 0,5 m x 1 m, zához vč. zhutnění,"]
[null,"naložení a odvoz zeminy a sutě s uložením na skládku, uvedení plochy do"]
[null,"původ. stavu, osetí trávou - vč. zbavení zeminy (vrstva 20 cm) větších kamenů"]
[null,"a nečistot, dodání travního semene","ks",6,null,{"$f":"E608*D608","v":0}]
[{"$f":"A604+1","v":26},"dodání ohebné korugované chráničky HDPE/LDPE Æ 75 mm (vč. potřeb. spojek)"]
[null,"vč. uložení této chráničky do výkopu - výměra zahrnuje ztratné prořezem","m",3180,null,{"$f":"D610*E610","v":0}]
[{"$f":"A609+1","v":27},"prohloubení a rozšíření výkopu 35/50 cm na 50/80 cm v místě uložení kabelové"]
[null,"spojky vč. záhozu výkopu zeminou a zhutnění záhozu (provedení v zeleni)","ks",2,null,{"$f":"D612*E612","v":0}]
[{"$f":"A611+1","v":28},"osazení dělené kabelové chráničky Ø160 mm (délky 3 m) na stávající kabel"]
[null,"ČEZ Distribuce, a.s. v místě osazení stožáru v ochranném pásmu kabelu včetně"]
[null,"dodání chráničky, odkopání kabelu (v zeleni), zajištění kontroly pověřeným"]
[null,"pracovníkem ČEZ Distribuce, a.s. před záhozem, záhozu výkopu a úpravy povrchu"]
[null,"do původního stavu včetně dodání travního semene, naložení odvoz a uložení"]
[null,"odpadu - odkopání kabelu a osazení chráničky provede odborná firma - smluvní"]
[null,"partner ČEZ Distribuce, a.s.","ks",2,null,{"$f":"D619*E619","v":0}]
[{"$f":"A613+1","v":29},"kácení stromu (obvod kmene stromu do cca 150 cm ve výšce 130 cm) včetně"]
[null,"odstranění pařezu a větších kořenů, zajištění potřebné techniky, zpracování dřeva"]
[null,"včetně odvozu a předání vlastníkovi, odvozu, likvidace a uložení odpadu","ks",1,null,{"$f":"D622*E622","v":0}]
[{"$f":"A620+1","v":30},"příplatek na provedení křížení s jiným vedením vč. projednání se správcem, uložení"]
[null,"cizího vedení do chráničky (vč. dodání dělené chráničky délky min. 2,5 m do Ø160 mm"]
[null,"nebo betonového žlabu), odkopání vedení v místě křížení, obsypání cizího vedení"]
[null,"pískem vč. dodání písku, zához a zhutnění záhozu, provedení def. úpravy povrchu"]
[null,"trav. plochy vč. dodání travního semene, naložení a odvoz odpadu na skládku","ks",42,null,{"$f":"E627*D627","v":0}]
[{"$f":"A623+1","v":31},"ochrana zemniče v ochranném pásmu plynovodu - uložení zemniče do tvárnicové"]
[null,"chráničky nebo betonového korýtka a vysypání pískem v délce min. 1 m na každou"]
[null,"stranu od plynovodu nebo v souběhu s plynovodem při vzdálenosti zemniče od"]
[null,"líce plynovodu do 1 m včetně zhotovení drážky na dně výkopu pro uložení korýtka"]
[null,"či žlabu, dodání beton. korýtka nebo beton. žlabu s víčkem, dodání písku, naložení,"]
[null,"odvoz a likvidace odpadu (vykopané zeminy)","m",56,null,{"$f":"E633*D633","v":0}]
[{"$f":"A628+1","v":32},"ochrana chráničky s kabelem VO v místě křížení (min.1 m na obě strany) nebo"]
[null,"souběhu do 1 m kabelu VO s VN kabelem nebo horkovodem - dodání a osazení"]
[null,"beton. kabel. žlabu (korýtka) s víčkem","m",129,null,{"$f":"E636*D636","v":0}]
[]
[null,"Celkem",null,null,null,{"$f":"SUM(F451:F637)","v":0}]
[]
[]
["V.","DODÁVKA","m.j.","počet","      cena za m.j.","cena celkem"]
[]
[1,"zapínací rozváděč RVO 6 vývodový v plast. skříni včetně plastového podstavce"]
[null,"s odnímatelným předním krytem a základového roštu, provedení schválené správou"]
[null,"VO (v souladu se ZTKP Ostravských komunikací, a.s. a v souladu s příslušnými"]
[null,"technickými normami), samozhášivý materiál SMC, barva RAL 7032, přirozené"]
[null,"odvětrávání, mech. odolnost min. IK 08, antiplakátovací úprava vnější strany dveří,"]
[null,"schéma zapojení a přístrojové vybavení rozváděče dle výkresu VO-938/503, krytí"]
[null,"min. IP54/2X, uzamykání dveří, oka pro visací zámek Ø 12 mm, roční spínací"]
[null,"programovatelné hodiny, materiál odolný UV záření a stanoveným vnějším vlivům,"]
[null,"barva šedá, přístrojové vybavení vyhovující stanoveným vnějším vlivům (viz TZ) -"]
[null,"cena včetně dopravy a manipulace","ks",1,null,{"$f":"E652*D652","v":0}]
[]
[null,"Celkem",null,null,null,{"$f":"SUM(F643:F653)","v":0}]
[]
[]
["VI.","HODINOVÁ ZÚČTOVACÍ SAZBA","m.j.","počet","      cena za m.j.","cena celkem"]
[]
[1,"přepojení rozvodu VO, provizorní provoz, rozfázování, potřebná měření, jednání"]
[null,"se správci sítí a vlastníky dotčených parcel, zajištění součinnosti se správci při"]
[null,"provádění prací v ochranných pásmech sítí","hod.",45,null,{"$f":"E661*D661","v":0}]
[{"$f":"A659+1","v":2},"výchozí elektro revize vč.  provedení měření a vypracování kompletní zprávy","hod.",52,null,{"$f":"E662*D662","v":0}]
[{"$f":"A662+1","v":3},"zajištění provizorního mobilního zdroje el. energie pro zkušební provoz nové"]
[null,"soustavy VO do doby provedení výchozí revize elektro","hod.",10,null,{"$f":"E664*D664","v":0}]
[]
[null,"Celkem",null,null,null,{"$f":"SUM(F659:F665)","v":0}]
[]
[]
["VII.","VEDLEJŠÍ A OSTATNÍ NÁKLADY","m.j.","počet","      cena za m.j.","cena celkem"]
[]
[1,"světelnětechnické měření nainstalované soustavy VO (ve 4 úsecích - viz"]
[null,"výpočty v TZ)","kpl",1,null,{"$f":"E672*D672","v":0}]
[{"$f":"A671+1","v":2},"digitální fotodokumentace stavby pro účely pasportizace VO","kpl",1,null,{"$f":"E673*D673","v":0}]
[{"$f":"A673+1","v":3},"digitální fotodokumentace (kamerová nahrávka) stavu dotčených komunikací"]
[null,"a ploch v rozsahu stavby (před zahájením stavby)","kpl",1,null,{"$f":"E675*D675","v":0}]
[{"$f":"A674+1","v":4},"geodetické zaměření celé stavby na podkladu katastrální mapy (CD se soubory"]
[null,"ve formátu dgn, dxf nebo dwg a tisk) ve čtyřech vyhotoveních","kpl",1,null,{"$f":"E677*D677","v":0}]
[{"$f":"A676+1","v":5},"vytýčení trasy VO a stožárů před zahájením stavby","kpl",1,null,{"$f":"E678*D678","v":0}]
[{"$f":"A678+1","v":6},"geodetické zaměření chráničky s kabely ČEZ v místě stavby osvětlovacích stožárů"]
[null,"v ochranném pásmu kabelů ČEZ Distribuce, a.s  (2 stožáry). v digitálním formátu"]
[null,"Microstation) - předat ČEZ Distribuce,a.s.","kpl",1,null,{"$f":"E681*D681","v":0}]
[{"$f":"A679+1","v":7},"geodetické zaměření VO v ochranném pásmu kanalizace OVaK, a.s. (předat"]
[null,"prostřednictvím OK, a.s.) - 1x tisk v KM a 1x elektronicky","kpl",1,null,{"$f":"E683*D683","v":0}]
[{"$f":"A682+1","v":8},"náhradní výsadba za kácené dřeviny (viz zemní práce, položka č. 29)","kpl",1,null,{"$f":"E684*D684","v":0}]
[{"$f":"A684+1","v":9},"převěšení stávající dopravní značky nebo reklamní cedule vč. potřebného"]
[null,"upevňovacího materiálu (nerez pásky se sponami)","ks",6,null,{"$f":"D686*E686","v":0}]
[{"$f":"A685+1","v":10},"provizorní dopravní značení nebo jiná dopr. opatření včetně zajištění projektu,"]
[null,"projednání a odsouhlasení","kpl",1,null,{"$f":"D688*E688","v":0}]
[{"$f":"A687+1","v":11},"zajištění bezpečnosti na stavbě po dobu realizace stavby vč. zajištění návrhu"]
[null,"opatření, zajištění otevřených výkopů, lávek pro pěší, úhrada správních poplatků"]
[null,"souvisejících s realizací stavby","kpl",1,null,{"$f":"D691*E691","v":0}]
[{"$f":"A689+1","v":12},"zajištění obnovení (prodloužení platnosti) vyjádření k projektové dokumentaci"]
[null,"a zajištění vytýčení všech dotčených inženýrských sítí před zahájením prací"]
[null,"včetně úhrady souvisejících poplatků","kpl",1,null,{"$f":"D694*E694","v":0}]
[]
[null,"Celkem",null,null,null,{"$f":"SUM(F672:F695)","v":0}]